bitfinex/quotes_SOLUSD_20250310
["timestamp","ask_amount","ask_price","bid_price","bid_amount"]
[1741628212402,8.712e-05,118.46,118.44,11.63702314]
[1741628212574,8.415e-05,118.47,118.46,20.14216157]
[1741628213097,8.415e-05,118.47,118.46,102.50769125]
[1741628213408,8.415e-05,118.47,118.46,102.64985282]
[1741628213699,12.66498998,118.55,118.51,0.14216157]
[1741628213993,12.66498998,118.55,118.54,93.92392968]
[1741628214197,12.66498998,118.55,118.54,20.0]
[1741628214909,86.58891966,118.55,118.51,53.1616718]
[1741628215074,73.92392968,118.52,118.46,53.1616718]
[1741628215271,14.2,118.51,118.48,73.92392968]
[1741628215478,14.2,118.51,118.5,93.92392968]
[1741628215685,14.2,118.51,118.5,147.08560148]
[1741628216912,14.2,118.51,118.5,73.1616718]
[1741628217295,14.2,118.51,118.5,147.08560148]
[1741628217479,14.2,118.51,118.5,127.08560148]
[1741628217681,0.063,118.55,118.5,127.08560148]
[1741628217991,0.063,118.55,118.54,20.0]
[1741628220280,73.98692968,118.55,118.5,53.1616718]
[1741628220481,73.92392968,118.53,118.51,20.0]
[1741628220681,73.92392968,118.54,118.51,20.0]
[1741628220886,0.063,118.55,118.45,53.1616718]
[1741628220887,73.92392968,118.52,118.45,53.1616718]
[1741628221100,0.063,118.55,118.47,73.92392968]
[1741628221410,0.063,118.55,118.5,73.92392968]
[1741628221612,0.063,118.55,118.5,53.1616718]
[1741628221903,73.92392968,118.53,118.5,53.1616718]
[1741628222112,73.92392968,118.54,118.5,53.1616718]
[1741628222420,73.98692968,118.55,118.5,53.1616718]
[1741628222580,73.92392968,118.52,118.47,73.92392968]
[1741628222786,73.92392968,118.51,118.47,53.1616718]
[1741628222984,14.1,118.5,118.47,127.08560148]
[1741628223184,14.1,118.5,118.49,93.92392968]
[1741628223505,14.1,118.5,118.47,127.08560148]
[1741628223713,14.1,118.5,118.49,20.0]
[1741628224109,14.1,118.5,118.49,93.92392968]
[1741628224418,22.5388,118.5,118.47,53.1616718]
[1741628224713,223.56,118.49,118.47,127.08560148]
[1741628225090,223.56,118.49,118.44,73.92392968]
[1741628225311,82.36412968,118.48,118.44,53.1616718]
[1741628225686,8.4402,118.48,118.44,53.1616718]
[1741628225895,297.48392968,118.49,118.44,53.1616718]
[1741628225896,223.56,118.49,118.46,73.92392968]
[1741628226089,223.56,118.49,118.47,73.92392968]
[1741628226294,73.92392968,118.48,118.42,53.1616718]
[1741628226511,73.92392968,118.48,118.42,127.08560148]
[1741628226710,73.92392968,118.48,118.43,73.92392968]
[1741628226912,73.92392968,118.47,118.42,127.08560148]
[1741628227220,82.36692968,118.44,118.4,53.1616718]
[1741628227386,14.04,118.43,118.4,53.1616718]
[1741628227592,14.04,118.43,118.42,73.92392968]
[1741628228125,14.04,118.46,118.42,53.1616718]
[1741628228412,14.04,118.46,118.43,20.0]
[1741628228622,14.04,118.46,118.43,73.92392968]
[1741628228784,0.18442925,118.44,118.43,73.92392968]
[1741628228989,0.18442925,118.44,118.43,20.0]
[1741628229216,0.18442925,118.44,118.43,93.92392968]
[1741628229515,0.18442925,118.44,118.4,61.6072718]
[1741628229516,82.55145893,118.44,118.4,53.1616718]
[1741628229717,73.92392968,118.43,118.36,71.1572718]
[1741628229885,73.92392968,118.41,118.36,136.63280148]
[1741628230091,311.56392968,118.4,118.34,53.2246718]
[1741628230303,237.64,118.4,118.37,20.0]
[1741628230513,237.64,118.4,118.36,73.92392968]
[1741628230903,73.92392968,118.39,118.34,53.2246718]
[1741628231109,73.92392968,118.39,118.34,127.14860148]
[1741628231310,237.64,118.4,118.36,73.92392968]
[1741628231916,237.64,118.4,118.38,73.92392968]
[1741628232116,237.64,118.4,118.38,127.08560148]
[1741628232303,237.64,118.4,118.39,73.92392968]
[1741628232798,237.64,118.4,118.38,53.1616718]
[1741628233315,320.00992968,118.4,118.37,20.0]
[1741628233489,73.92392968,118.39,118.34,127.14860148]
[1741628233693,237.64,118.4,118.35,73.92392968]
[1741628233997,311.56392968,118.4,118.35,73.92392968]
[1741628234199,320.01012968,118.4,118.34,53.2246718]
[1741628234431,73.92392968,118.39,118.34,127.14860148]
[1741628234710,311.56392968,118.4,118.34,135.59850148]
[1741628234945,311.56392968,118.4,118.19,67.69492282]
[1741628234946,20.0,118.27,118.19,0.03]
[1741628235099,74.06609125,118.2,118.19,0.03]
[1741628235307,0.28432314,118.19,118.1,78.63552968]
[1741628235605,73.92392968,118.14,118.08,1.6]
[1741628235795,73.92392968,118.1,118.04,19.46919811]
[1741628235989,73.92392968,118.1,118.04,88.68152779]
[1741628236309,73.92392968,118.1,118.07,20.0]
[1741628236500,73.92392968,118.11,118.08,20.0]
[1741628237023,223.7,118.13,118.12,20.0]
[1741628237320,223.7,118.13,118.09,0.28432314]
[1741628237525,223.7,118.13,118.08,1.6]
[1741628237690,223.7,118.13,118.08,75.52392968]
[1741628237897,73.92392968,118.1,118.02,76.7753]
[1741628238197,246.2252,118.13,118.01,83.53882968]
[1741628238198,73.92392968,118.07,118.01,83.53882968]
[1741628238608,73.92392968,118.09,118.03,73.92392968]
[1741628238825,73.92392968,118.08,118.03,73.92392968]
[1741628239020,73.92392968,118.07,118.01,83.53882968]
[1741628239409,8.4688,118.08,118.04,20.0]
[1741628239743,73.92392968,118.09,118.03,73.92392968]
[1741628239916,73.92392968,118.07,118.01,83.53882968]
[1741628240420,73.92392968,118.09,118.01,9.6149]
[1741628240720,246.4055,118.13,118.05,20.0]
[1741628240929,73.92392968,118.1,118.07,20.0]
[1741628241232,14.28,118.12,118.07,73.92392968]
[1741628241433,223.7,118.13,118.11,73.92392968]
[1741628241750,223.7,118.13,118.12,73.92392968]
[1741628242832,223.7,118.13,118.12,93.92392968]
[1741628243007,297.62392968,118.13,118.04,76.7753]
[1741628243204,73.92392968,118.11,118.05,74.06609125]
[1741628243426,73.92392968,118.1,118.04,73.92392968]
[1741628243624,73.92392968,118.11,118.08,20.0]
[1741628243824,73.92392968,118.11,118.06,73.92392968]
[1741628244035,73.92392968,118.09,118.04,73.92392968]
[1741628244247,2.0,117.98,117.91,0.03]
[1741628244533,42.30542934,117.95,117.79,2.0]
[1741628244739,73.92392968,117.89,117.82,73.92392968]
[1741628244906,224.06,117.89,117.81,2.0]
[1741628245106,224.06,117.89,117.84,73.92392968]
[1741628245335,224.06,117.89,117.83,73.92392968]
[1741628245640,73.92392968,117.86,117.79,73.92392968]
[1741628245938,73.92392968,117.86,117.77,2.0]
[1741628245939,73.92392968,117.82,117.74,15.2125]
[1741628246151,15.78,117.83,117.74,89.13642968]
[1741628246430,15.78,117.83,117.7,2.0]
[1741628246729,15.78,117.83,117.78,73.92392968]
[1741628246930,15.78,117.83,117.73,2.0]
[1741628246931,89.70392968,117.83,117.72,2.0]
[1741628247134,73.92392968,117.86,117.82,20.0]
[1741628247312,240.06,117.89,117.82,20.0]
[1741628247512,240.06,117.89,117.74,73.92392968]
[1741628247513,73.92392968,117.83,117.74,73.92392968]
[1741628247815,298.5426,117.89,117.69,8.4968]
[1741628247816,16.06,117.82,117.69,8.4968]
[1741628248017,73.92392968,117.79,117.73,73.92392968]
[1741628248235,73.92392968,117.76,117.69,8.4968]
[1741628248439,73.92392968,117.75,117.69,73.92392968]
[1741628248736,16.52,117.74,117.68,0.25]
[1741628248913,73.92392968,117.69,117.68,0.25]
[1741628249112,224.46342822,117.7,117.68,0.25]
[1741628249832,224.46342822,117.7,117.68,74.17392968]
[1741628250012,0.18342822,117.7,117.69,73.92392968]
[1741628250627,0.18053894,117.71,117.69,73.92392968]
[1741628250837,0.18053894,117.71,117.68,0.25]
[1741628251520,0.18053894,117.71,117.68,74.17392968]
[1741628251726,0.18053894,117.71,117.7,93.92392968]
[1741628252044,0.18053894,117.71,117.7,167.84785936]
[1741628252247,0.17631942,117.74,117.7,6.7975]
[1741628252422,0.17631942,117.74,117.71,20.0]
[1741628252622,0.1834991,117.75,117.71,20.0]
[1741628252815,0.1552566,117.77,117.75,20.0]
[1741628253035,224.64,117.76,117.74,1.27299822]
[1741628253234,73.92392968,117.75,117.68,0.25]
[1741628253425,73.92392968,117.71,117.68,0.25]
[1741628254017,73.92392968,117.7,117.68,0.25]
[1741628254220,73.92392968,117.7,117.69,0.03]
[1741628254439,74.06609125,117.7,117.69,0.03]
[1741628254652,74.20825282,117.7,117.69,0.03]
[1741628254948,73.92392968,117.71,117.69,0.03]
[1741628255120,73.92392968,117.7,117.69,0.03]
[1741628255448,73.92392968,117.72,117.69,0.03]
[1741628255744,73.92392968,117.71,117.69,0.03]
[1741628255945,73.92392968,117.72,117.69,0.03]
[1741628256115,0.28432314,117.74,117.69,0.03]
[1741628256116,73.92392968,117.74,117.69,0.03]
[1741628256320,224.64,117.76,117.69,73.95392968]
[1741628256618,224.64,117.76,117.73,73.92392968]
[1741628257029,224.64,117.76,117.75,73.92392968]
[1741628257844,0.16199253,117.78,117.75,73.92392968]
[1741628258052,0.16199253,117.78,117.77,73.92392968]
[1741628258255,0.16199253,117.78,117.71,9.537]
[1741628258418,0.16199253,117.78,117.73,73.92392968]
[1741628258621,0.16199253,117.78,117.71,18.0324]
[1741628259038,0.16199253,117.78,117.74,73.92392968]
[1741628259250,74.08592221,117.78,117.72,73.92392968]
[1741628259433,74.08592221,117.78,117.7,8.4961]
[1741628259434,0.16199253,117.78,117.7,8.4961]
[1741628259630,0.16199253,117.78,117.75,73.92392968]
[1741628260047,0.16199253,117.78,117.74,73.92392968]
[1741628260246,0.16199253,117.78,117.75,73.92392968]
[1741628260432,0.16199253,117.78,117.77,73.92392968]
[1741628261261,0.16199253,117.78,117.75,93.92392968]
[1741628261450,0.16199253,117.78,117.77,73.92392968]
[1741628261858,0.16199253,117.78,117.73,73.92392968]
[1741628262163,0.16199253,117.78,117.75,73.92392968]
[1741628262350,0.16199253,117.78,117.77,73.92392968]
[1741628262733,9.986e-05,117.79,117.77,74.20825282]
[1741628262937,9.986e-05,117.79,117.78,147.84785936]
[1741628263133,224.8,117.83,117.81,20.0]
[1741628263437,224.86,117.9,117.86,8.4846]
[1741628263838,224.86,117.9,117.89,167.84785936]
[1741628264043,224.86,117.9,117.89,93.92392968]
[1741628264850,224.8,117.97,117.89,93.92392968]
[1741628265061,298.72392968,117.97,117.89,20.0]
[1741628265355,298.72392968,117.97,117.91,73.92392968]
[1741628265548,224.8,117.97,117.92,73.92392968]
[1741628265738,298.72392968,117.97,117.92,73.92392968]
[1741628265940,298.78692968,117.97,117.91,73.92392968]
[1741628266140,73.92392968,117.96,117.91,73.92392968]
[1741628266340,73.92392968,117.96,117.9,82.40542968]
[1741628266547,298.78692968,117.97,117.91,73.92392968]
[1741628266839,298.78692968,117.97,117.92,73.92392968]
[1741628267041,233.34,117.97,117.86,8.4846]
[1741628267348,233.34,117.97,117.86,29.6962]
[1741628267535,8.4781,117.95,117.85,8.4853]
[1741628267732,73.92392968,117.94,117.88,73.92392968]
[1741628267965,298.78692968,117.97,117.91,73.92392968]
[1741628268134,233.3399,117.97,117.91,73.92392968]
[1741628268337,224.863,117.97,117.92,73.92392968]
[1741628268554,224.863,117.97,117.95,73.92392968]
[1741628268735,224.863,117.97,117.94,73.92392968]
[1741628268931,0.16745414,117.95,117.93,20.0]
[1741628269447,0.16745414,117.95,117.94,73.92392968]
[1741628269760,0.16745414,117.95,117.94,82.40272968]
[1741628270358,0.16745414,117.95,117.94,73.92392968]
[1741628271138,0.16745414,117.95,117.92,8.4801]
[1741628271337,0.16745414,117.95,117.94,73.92392968]
[1741628271753,0.16745414,117.95,117.91,73.92392968]
[1741628272068,8.64575414,117.95,117.88,73.92392968]
[1741628272354,74.09138382,117.95,117.9,73.92392968]
[1741628272562,18.48745414,117.95,117.9,73.92392968]
[1741628273450,18.48745414,117.95,117.92,73.92392968]
[1741628273656,0.16745414,117.95,117.94,73.92392968]
[1741628273859,0.16745414,117.95,117.91,73.92392968]
[1741628274050,0.16745414,117.95,117.92,73.92392968]
[1741628274253,0.16745414,117.95,117.93,73.92392968]
[1741628274647,0.16745414,117.95,117.9,73.92392968]
[1741628274854,82.56958382,117.95,117.89,73.92392968]
[1741628275051,29.84105414,117.95,117.85,8.4853]
[1741628275255,73.92392968,117.91,117.85,73.92392968]
[1741628275457,73.92392968,117.94,117.88,73.92392968]
[1741628275654,73.92392968,117.92,117.86,73.92392968]
[1741628276467,73.92392968,117.9,117.81,0.14216157]
[1741628276769,73.92392968,117.92,117.86,73.92392968]
[1741628277177,73.92392968,117.93,117.87,73.92392968]
[1741628277475,73.92392968,117.93,117.84,73.92392968]
[1741628277476,82.40272968,117.94,117.88,73.92392968]
[1741628277765,82.40272968,117.94,117.84,73.92392968]
[1741628277766,82.40412968,117.93,117.87,73.92392968]
[1741628278155,73.92392968,117.91,117.85,73.92392968]
[1741628278557,73.92392968,117.93,117.88,73.92392968]
[1741628278768,73.92392968,117.93,117.87,73.92392968]
[1741628278958,8.64575414,117.95,117.89,73.92392968]
[1741628279152,73.92392968,117.94,117.85,0.14216157]
[1741628279357,73.92392968,117.92,117.86,73.92392968]
[1741628279554,73.92392968,117.93,117.87,73.92392968]
[1741628279760,0.16745414,117.95,117.9,73.92392968]
[1741628279950,73.92392968,117.94,117.88,73.92392968]
[1741628280676,0.16745414,117.95,117.9,73.92392968]
[1741628280976,73.92392968,117.94,117.88,73.92392968]
[1741628281180,73.92392968,117.93,117.87,73.92392968]
[1741628281882,73.92392968,117.93,117.81,73.92392968]
[1741628281883,73.92392968,117.88,117.81,73.92392968]
[1741628282179,224.68,117.87,117.83,73.92392968]
[1741628283082,224.68,117.87,117.79,8.4893]
[1741628283259,224.68,117.87,117.82,73.92392968]
[1741628283580,224.68,117.87,117.79,29.7135]
[1741628283581,73.92392968,117.86,117.79,8.4893]
[1741628283750,224.68,117.87,117.82,73.92392968]
[1741628284071,224.68,117.87,117.85,73.92392968]
[1741628284261,224.68,117.87,117.86,73.92392968]
[1741628284462,298.60392968,117.87,117.81,73.92392968]
[1741628284651,73.92392968,117.85,117.78,8.4899]
[1741628284850,73.92392968,117.79,117.71,34.038799]
[1741628285052,224.68,117.78,117.75,73.92392968]
[1741628285273,224.68,117.79,117.77,73.92392968]
[1741628285465,224.68,117.82,117.78,73.92392968]
[1741628285955,224.68,117.82,117.81,73.92392968]
[1741628286466,224.68,117.82,117.81,93.92392968]
[1741628286968,224.68,117.82,117.81,73.92392968]
[1741628287170,224.68,117.82,117.75,0.14216157]
[1741628287371,224.68,117.82,117.79,73.92392968]
[1741628287675,224.68,117.82,117.77,20.0]
[1741628287676,224.68,117.82,117.8,73.92392968]
[1741628287873,224.68,117.82,117.79,73.92392968]
[1741628288384,307.09142968,117.82,117.76,73.92392968]
[1741628288870,0.18078991,117.77,117.76,73.92392968]
[1741628289462,0.18078991,117.77,117.71,98.0124]
[1741628289463,0.18078991,117.77,117.74,73.92392968]
[1741628289673,0.18078991,117.77,117.68,21.4927]
[1741628289674,0.18078991,117.77,117.69,0.03]
[1741628289849,73.92392968,117.71,117.69,0.03]
[1741628290050,224.76,117.7,117.69,0.03]
[1741628290450,224.76,117.7,117.69,82.45072968]
[1741628291168,224.76,117.7,117.69,0.03]
[1741628292150,224.76,117.7,117.69,73.95392968]
[1741628292346,224.76,117.7,117.69,0.03]
[1741628292565,224.76,117.7,117.69,73.95392968]
[1741628293373,224.76,117.7,117.69,0.03]
[1741628294050,0.18078991,117.77,117.69,0.03]
[1741628294051,225.02078991,117.77,117.71,20.0]
[1741628294253,225.02078991,117.77,117.72,73.92392968]
[1741628294254,307.43591959,117.77,117.72,73.92392968]
[1741628294578,298.94471959,117.77,117.71,73.92392968]
[1741628294878,225.02078991,117.77,117.74,73.92392968]
[1741628295076,225.02078991,117.77,117.72,73.92392968]
[1741628295253,0.18078991,117.77,117.72,73.92392968]
[1741628295579,224.9,117.76,117.69,0.03]
[1741628295756,82.41712968,117.74,117.69,73.95392968]
[1741628295955,82.41712968,117.74,117.69,0.03]
[1741628296267,73.92392968,117.73,117.69,0.03]
[1741628296578,8.4932,117.74,117.69,0.03]
[1741628296778,73.92392968,117.73,117.69,0.03]
[1741628296989,73.92392968,117.7,117.69,0.03]
[1741628297352,74.20825282,117.7,117.69,0.0001]
[1741628297751,74.20825282,117.69,117.68,0.25]
[1741628297977,82.70505282,117.69,117.68,0.25]
[1741628298159,105.00505282,117.69,117.68,0.25]
[1741628298365,105.00505282,117.69,117.58,4.7405]
[1741628298555,73.92392968,117.66,117.57,73.92392968]
[1741628298877,224.94,117.65,117.62,73.92392968]
[1741628299196,224.94,117.65,117.55,18.2634]
[1741628299387,73.92392968,117.61,117.55,9.7567]
[1741628299681,0.28432314,117.64,117.56,73.92392968]
[1741628299852,298.86392968,117.65,117.6,73.92392968]
[1741628300053,298.86392968,117.65,117.58,0.28432314]
[1741628300054,224.94,117.65,117.58,0.28432314]
[1741628300250,224.94,117.65,117.57,20.0]
[1741628300455,224.94,117.65,117.64,73.92392968]
[1741628301285,225.04,117.72,117.64,148.1321825]
[1741628301582,225.04,117.72,117.7,73.92392968]
[1741628301776,225.04,117.72,117.71,82.41932968]
[1741628301971,0.18078991,117.77,117.71,82.70365282]
[1741628304771,0.1572782,117.81,117.8,0.14216157]
[1741628304958,2.101e-05,117.82,117.81,0.14216157]
[1741628305164,0.17747952,117.83,117.82,0.14216157]
[1741628305371,0.17747952,117.83,117.82,147.84785936]
[1741628305584,0.17747952,117.83,117.81,9.479]
[1741628305886,0.17747952,117.83,117.82,82.69575282]
[1741628306176,0.17348027,117.84,117.83,0.14216157]
[1741628306378,0.17348027,117.84,117.83,147.99002093]
[1741628306984,0.17348027,117.84,117.83,73.92392968]
[1741628307180,0.17348027,117.84,117.83,74.06609125]
[1741628307364,0.17348027,117.84,117.83,73.92392968]
[1741628307986,0.17348027,117.84,117.83,156.6189825]
[1741628308361,0.17348027,117.84,117.83,82.41072968]
[1741628308860,0.34807359,117.84,117.83,156.47682093]
[1741628309062,0.17459332,117.84,117.83,156.6189825]
[1741628309409,0.17459332,117.84,117.82,73.92392968]
[1741628309694,0.17459332,117.84,117.76,76.7753]
[1741628309862,307.25082968,117.83,117.78,73.92392968]
[1741628310194,73.92392968,117.82,117.77,73.92392968]
[1741628310360,224.84,117.83,117.78,73.92392968]
[1741628310680,73.92392968,117.82,117.76,73.92392968]
[1741628310979,224.84,117.83,117.8,73.92392968]
[1741628311189,224.84,117.82,117.78,73.92392968]
[1741628311586,224.84,117.82,117.81,20.0]
[1741628311759,224.84,117.82,117.81,73.92392968]
[1741628312461,224.84,117.82,117.81,74.06609125]
[1741628312660,224.84,117.82,117.81,74.20825282]
[1741628313479,224.84,117.82,117.81,74.06609125]
[1741628313990,0.17459332,117.84,117.83,20.14216157]
[1741628314293,0.17459332,117.84,117.83,167.99002093]
[1741628314796,6.311e-05,117.85,117.84,0.14216157]
[1741628314993,6.311e-05,117.85,117.84,20.14216157]
[1741628315173,6.311e-05,117.85,117.84,93.92392968]
[1741628315371,6.311e-05,117.85,117.84,167.84785936]
[1741628315590,6.311e-05,117.85,117.84,93.92392968]
[1741628315891,6.311e-05,117.85,117.84,73.92392968]
[1741628316192,6.311e-05,117.85,117.84,82.40992968]
[1741628316503,6.311e-05,117.85,117.84,73.92392968]
[1741628316790,6.311e-05,117.85,117.83,8.4867]
[1741628316791,6.311e-05,117.85,117.78,95.14812968]
[1741628316992,73.92392968,117.84,117.78,73.92392968]
[1741628317300,73.92392968,117.81,117.76,73.92392968]
[1741628317479,6.311e-05,117.85,117.79,73.92392968]
[1741628317682,6.311e-05,117.85,117.75,8.4923]
[1741628317983,6.311e-05,117.85,117.78,73.92392968]
[1741628318291,73.92392968,117.83,117.78,73.92392968]
[1741628318696,73.92399279,117.85,117.8,73.92392968]
[1741628318993,6.311e-05,117.85,117.83,73.92392968]
[1741628319169,6.311e-05,117.85,117.84,73.92392968]
[1741628319368,6.311e-05,117.85,117.83,73.92392968]
[1741628319573,6.311e-05,117.85,117.78,82.41422968]
[1741628319777,6.311e-05,117.85,117.83,73.92392968]
[1741628320072,6.311e-05,117.85,117.84,73.92392968]
[1741628320272,6.311e-05,117.85,117.81,73.92392968]
[1741628320471,6.311e-05,117.85,117.83,73.92392968]
[1741628320784,6.311e-05,117.85,117.84,73.92392968]
[1741628321491,6.311e-05,117.85,117.84,147.84785936]
[1741628321884,8.658e-05,117.86,117.85,0.14216157]
[1741628322077,8.658e-05,117.86,117.85,74.06609125]
[1741628322270,6.202e-05,117.87,117.85,82.69355282]
[1741628322467,6.669e-05,117.88,117.87,0.14216157]
[1741628322682,0.2338463,117.89,117.88,20.28432314]
[1741628322880,0.18301206,117.93,117.88,147.99002093]
[1741628323196,0.18301206,117.93,117.9,0.14216157]
[1741628323404,0.18301206,117.93,117.91,0.14216157]
[1741628323570,0.18301206,117.93,117.91,74.06609125]
[1741628323767,0.18301206,117.93,117.91,73.92392968]
[1741628324172,0.18301206,117.93,117.91,82.54709125]
[1741628324388,0.18301206,117.93,117.91,82.68925282]
[1741628324695,0.18301206,117.93,117.92,0.14216157]
[1741628324991,224.863,117.97,117.92,94.20825282]
[1741628325198,224.863,117.97,117.93,73.92392968]
[1741628325575,224.863,117.97,117.93,74.06609125]
[1741628325776,224.863,117.97,117.93,74.20825282]
[1741628325975,224.863,117.97,117.94,0.28432314]
[1741628326195,224.863,117.97,117.95,8.4781]
[1741628326501,224.863,117.97,117.96,147.84785936]
[1741628327192,224.863,117.97,117.96,147.99002093]
[1741628327410,0.0001,117.97,117.96,148.1321825]
[1741628327777,224.72,118.04,118.03,73.92392968]
[1741628328899,224.88294691,118.04,118.03,73.92392968]
[1741628329194,224.88294691,118.04,118.03,82.39632968]
[1741628329400,224.88294691,118.04,118.03,73.92392968]
[1741628329774,224.88294691,118.04,118.01,73.92392968]
[1741628330306,224.66,118.03,118.01,73.92392968]
[1741628330602,224.66,118.03,118.0,73.92392968]
[1741628330899,224.66,118.03,118.02,73.92392968]
[1741628331098,224.66,118.03,117.99,28.4752]
[1741628331299,224.66,118.03,118.02,73.92392968]
[1741628332290,224.66,118.03,118.02,82.39702968]
[1741628332604,224.66,118.03,118.02,73.92392968]
[1741628332905,224.66,118.03,117.99,20.0]
[1741628333101,224.66,118.03,118.01,73.92392968]
[1741628333395,224.66,118.03,118.02,73.92392968]
[1741628333806,224.66,118.03,117.99,8.4752]
[1741628334007,224.66,118.03,118.02,73.92392968]
[1741628334380,0.16203757,118.05,118.02,156.32095936]
[1741628334581,0.16203757,118.05,118.04,73.92392968]
[1741628334800,0.16203757,118.05,118.03,73.92392968]
[1741628334981,0.16203757,118.05,118.04,94.06609125]
[1741628335177,0.16203757,118.05,118.04,93.92392968]
[1741628335687,0.17552143,118.07,118.05,0.14216157]
[1741628336015,0.17552143,118.07,118.06,73.92392968]
[1741628336697,0.17755855,118.08,118.07,0.14216157]
[1741628336902,0.17755855,118.08,118.07,147.99002093]
[1741628337293,0.23509571,118.09,118.07,147.99002093]
[1741628337607,9.571e-05,118.09,118.08,168.1321825]
[1741628337780,3.575e-05,118.1,118.09,0.28432314]
[1741628338117,1.775e-05,118.11,118.09,74.20825282]
[1741628338299,1.775e-05,118.11,118.1,74.06609125]
[1741628338482,1.775e-05,118.11,118.1,82.53349125]
[1741628338882,1.775e-05,118.11,118.1,82.39132968]
[1741628339101,1.775e-05,118.11,118.1,82.53349125]
[1741628339608,9.743e-05,118.12,118.11,0.14216157]
[1741628339908,0.063,118.24,118.11,0.14216157]
[1741628339909,73.98692968,118.24,118.14,20.0]
[1741628340120,0.063,118.24,118.15,74.06609125]
[1741628340412,224.38,118.22,118.18,20.0]
[1741628340715,224.38,118.22,118.21,73.92392968]
[1741628341293,306.76282968,118.22,118.16,73.92392968]
[1741628341496,73.92392968,118.2,118.15,73.92392968]
[1741628341696,73.92392968,118.21,118.16,73.92392968]
[1741628341995,224.38,118.22,118.17,73.92392968]
[1741628342180,224.38,118.22,118.18,73.92392968]
[1741628342388,224.38,118.22,118.17,73.92392968]
[1741628342582,232.8389,118.22,118.15,20.0]
[1741628342823,224.38,118.22,118.19,73.92392968]
[1741628343124,224.38,118.22,118.21,73.92392968]
[1741628344588,224.38,118.22,118.21,82.38342968]
[1741628344794,224.38,118.22,118.21,82.52559125]
[1741628345031,0.063,118.24,118.23,20.0]
[1741628345309,0.063,118.24,118.23,93.92392968]
[1741628345688,224.35,118.28,118.24,0.14216157]
[1741628346007,224.35,118.28,118.26,73.92392968]
[1741628346213,224.35,118.28,118.21,8.4595]
[1741628346414,224.35,118.28,118.27,73.92392968]
[1741628347121,224.35,118.28,118.25,73.92392968]
[1741628347420,224.35,118.28,118.24,73.92392968]
[1741628347595,224.35,118.28,118.26,73.92392968]
[1741628347792,224.35,118.28,118.22,0.14216157]
[1741628347991,224.35,118.28,118.27,73.92392968]
[1741628348190,224.22,118.32,118.27,74.06609125]
[1741628348504,224.22,118.32,118.31,73.92392968]
[1741628348910,0.15656379,118.3,118.27,8.4552]
[1741628349099,0.15656379,118.3,118.28,73.92392968]
[1741628349420,74.08049347,118.3,118.24,73.92392968]
[1741628349590,21.44216157,118.29,118.14,10.0006]
[1741628349901,19.3,118.28,118.18,8.4613]
[1741628350096,73.92392968,118.24,118.19,73.92392968]
[1741628350313,73.92392968,118.22,118.16,73.92392968]
[1741628350514,73.92392968,118.22,118.17,73.92392968]
[1741628350713,73.92392968,118.2,118.11,8.4666]
[1741628351018,251.9183,118.23,118.17,73.92392968]
[1741628351216,73.92392968,118.21,118.16,73.92392968]
[1741628351434,73.92392968,118.22,118.16,73.92392968]
[1741628351628,306.54222968,118.23,118.12,0.28432314]
[1741628351835,306.54222968,118.23,118.18,73.92392968]
[1741628352327,224.16,118.23,118.19,73.92392968]
[1741628352730,306.54202968,118.23,118.14,93.92392968]
[1741628352928,73.92392968,118.2,118.11,8.4666]
[1741628353133,73.92392968,118.19,118.14,73.92392968]
[1741628353335,73.92392968,118.21,118.15,73.92392968]
[1741628353538,224.16,118.23,118.2,73.92392968]
[1741628353728,224.16,118.23,118.18,0.14216157]
[1741628353917,224.16,118.23,118.22,73.92392968]
[1741628354734,0.03,118.28,118.25,20.0]
[1741628354934,0.03,118.28,118.27,73.92392968]
[1741628355238,0.03,118.28,118.22,8.4588]
[1741628355614,0.03,118.28,118.27,73.92392968]
[1741628356430,224.16,118.29,118.27,73.92392968]
[1741628356628,224.16,118.29,118.28,73.92392968]
[1741628357025,232.6138,118.29,118.26,73.92392968]
[1741628357226,232.6138,118.29,118.25,73.92392968]
[1741628357431,73.92392968,118.28,118.23,73.92392968]
[1741628357936,232.6138,118.29,118.26,73.92392968]
[1741628358240,73.92392968,118.28,118.22,73.92392968]
[1741628358441,73.92392968,118.27,118.22,73.92392968]
[1741628358816,8.4556,118.27,118.19,8.4609]
[1741628359019,82.37952968,118.27,118.22,73.92392968]